fUSD/lending_fUSD_20251115
["ID","MTS","AMOUNT","RATE_DAILY","PERIOD"]
[394021704,1763197876204,-500.0,0.00041557,15]
[394021705,1763197876214,-500.0,0.00041557,15]
[394021706,1763197876223,-500.0,0.00041557,15]
[394021707,1763197876232,-500.0,0.00041557,15]
[394021708,1763197876242,-500.0,0.00041557,15]
[394021709,1763197876251,-500.0,0.00041557,15]
[394021710,1763197876260,-500.0,0.00041557,15]
[394021711,1763197876270,-219.29526214,0.00041572,120]
[394021712,1763197876281,-150.05,0.00041579,30]
[394021713,1763197876290,-150.05,0.00041579,30]
[394021714,1763197876299,-150.05,0.00041579,30]
[394021715,1763197876309,-50000.0,0.00041599,30]
[394021716,1763197876318,-50000.0,0.00041599,31]
[394021717,1763197876327,-12137625.50700044,0.000416,7]
[394021718,1763197876336,-5227994.24800025,0.000416,7]
[394021719,1763197876348,-2245816.62970223,0.000416,7]
[394021720,1763197876357,-1088581.50395652,0.000416,7]
[394021721,1763197876714,-151.0,0.00018,2]
[394021722,1763197876724,-151.0,0.00018,2]
[394021723,1763197876733,-151.0,0.00018,2]
[394021724,1763197876744,-151.0,0.00018,2]
[394021725,1763197876753,-219.611727,0.00018,2]
[394021726,1763197876763,-213.49191549,0.00018,2]
[394021727,1763197876772,-151.0,0.00018,2]
[394021728,1763197876782,-219.611727,0.00018,2]
[394021729,1763197876792,-550.1,0.000181,2]
[394021730,1763197876802,-151.0,0.0002,2]
[394021731,1763197876811,-975.0198774,0.000406,12]
[394021732,1763197876820,-9114.18135697,0.000416,7]
[394021733,1763197876838,-151.0,0.00018,2]
[394021734,1763197876852,-204805.16124139,0.000416,7]
[394021735,1763197876863,-464.57653378,0.000416,7]
[394021736,1763197876902,-219.611727,0.00018,2]
[394021737,1763197876911,-1425.7980587,0.000416,7]
[394021738,1763197966568,150.0,0.00027083,120]
[394021739,1763198099396,508.0,0.00022,30]
[394021741,1763198220526,156.27,0.00013228,2]
[394021742,1763198220734,156.27,0.00014173,2]
[394021743,1763198220940,156.27,0.00015118,2]
[394021747,1763198644526,793.1,0.00013699,2]
[394021748,1763198760694,6247.14573828,8e-05,2]
[394021749,1763198823857,2490.95426172,0.00015,2]
[394021750,1763198823879,104.45851182,0.00015,2]
[394021751,1763198833502,2136.78420162,0.0001305,2]
[394021752,1763198863850,4393.21963753,0.00013,2]
[394021863,1763199031825,-156.27,0.00016063,2]
[394021864,1763199031834,-1668.79357538,0.00016899,2]
[394021865,1763199031846,-1048.30109769,0.00016899,2]
[394021866,1763199031857,-766.22784662,0.00016899,2]
[394021867,1763199031868,-851.81681194,0.00016899,2]
[394021868,1763199031880,-300.0,0.00016999,2]
[394021869,1763199031889,-19726.66793846,0.00017,2]
[394021870,1763199031899,-32030.81866312,0.00017,2]
[394021871,1763199031910,-156.27,0.00017007,2]
[394021872,1763199031919,-238.0445,0.00017209,2]
[394021873,1763199031928,-168.0,0.00017309,2]
[394021874,1763199031937,-168.0,0.00017472,2]
[394021875,1763199031947,-162.49235502,0.000175,2]
[394021876,1763199031958,-15301.99596052,0.000175,2]
[394021877,1763199031969,-1028.9,0.000175,2]
[394022214,1763199039781,-3412.91819149,0.000175,2]
[394022216,1763199039840,-256.20584799,0.000175,2]
[394022217,1763199039851,-500.0,0.00017599,2]
[394022218,1763199039859,-500.0,0.00017599,2]
[394022219,1763199039868,-500.0,0.00017599,2]
[394022221,1763199039877,-500.0,0.00017599,2]
[394022222,1763199039887,-359.47795847,0.00017599,2]
[394022223,1763199039896,-500.0,0.00017599,2]
[394022225,1763199039905,-177.26,0.000176,2]
[394022226,1763199039915,-300.0,0.00017669,2]
[394022227,1763199039924,-195.0,0.00017669,2]
[394022228,1763199039933,-250.0,0.00017669,2]
[394022229,1763199039942,-168.0,0.00017876,2]
[394022230,1763199039951,-156.27,0.00017952,2]
[394022231,1763199039960,-168.0,0.0001798,2]
[394022232,1763199039969,-151.0,0.00017989,2]
[394022233,1763199039978,-1557049.01921635,0.00018,2]
[394022234,1763199039990,-453.364919,0.00018,2]
[394022259,1763199045865,-34150.32003205,0.00018,2]
[394022260,1763199045925,-204805.16124139,0.00018,2]
[394022261,1763199045936,-430.864,0.00018,2]
[394022429,1763200232000,-300.0,0.00016898,2]
[394022430,1763200232010,-500.0,0.00016899,2]
[394022431,1763200232019,-500.0,0.00016899,2]
[394022432,1763200232028,-337.97311388,0.00016899,2]
[394022433,1763200232037,-500.0,0.00016899,2]
[394022434,1763200232047,-500.0,0.00016899,2]
[394022435,1763200232055,-235.37898463,0.000169,2]
[394022436,1763200232066,-40.85801896,0.000169,2]
[394022437,1763200232076,-250.0,0.00017,2]
[394022438,1763200232085,-175.13730954,0.00017575,2]
[394022439,1763200232115,-999.0,0.00017575,2]
[394022440,1763200232126,-403.98555378,0.00017575,2]
[394022441,1763200232135,-222.2113773,0.00017583,2]
[394022442,1763200232144,-500.0,0.00017808,2]
[394022443,1763200232153,-159.92173267,0.000179,2]
[394022444,1763200232171,-501.44245862,0.00017973,2]
[394022445,1763200232182,-500.0,0.00017973,2]
[394022446,1763200232196,-151.0,0.00017989,2]
[394022447,1763200232205,-151.0,0.00017989,2]
[394022448,1763200232214,-151.0,0.00017989,2]
[394022449,1763200232224,-151.0,0.00017989,2]
[394022450,1763200232233,-151.0,0.00017989,2]
[394022451,1763200232242,-151.0,0.00017989,2]
[394022452,1763200232251,-151.0,0.00017989,2]
[394022453,1763200232262,-151.0,0.00017989,2]
[394022454,1763200232271,-255.72336996,0.00017989,2]
[394022455,1763200232281,-221.83485597,0.00017996,2]
[394022456,1763200232291,-500.0,0.00017999,2]
[394022457,1763200232300,-500.0,0.00017999,2]
[394022458,1763200232309,-500.0,0.00017999,2]
[394022459,1763200232319,-500.0,0.00017999,2]
[394022460,1763200232328,-500.0,0.00017999,2]
[394022461,1763200232337,-366.99815821,0.00017999,2]
[394022462,1763200232347,-500.0,0.00017999,2]
[394022463,1763200232356,-500.0,0.00017999,2]
[394022465,1763200232365,-500.0,0.00017999,2]
[394022466,1763200232375,-500.0,0.00017999,2]
[394022467,1763200232384,-500.0,0.00017999,2]
[394022468,1763200232394,-500.0,0.00017999,2]
[394022469,1763200232403,-500.0,0.00017999,2]
[394022470,1763200232412,-500.0,0.00017999,2]
[394022472,1763200232422,-500.0,0.00017999,2]
[394022473,1763200232432,-392.95623526,0.00017999,2]
[394022474,1763200232443,-91803.92070655,0.00018,2]
[394022475,1763200232456,-685.08971641,0.00018,2]
[394022476,1763200232467,-1026.2,0.00018,2]
[394022477,1763200232484,-295.99999997,0.00018,2]
[394022478,1763200232495,-2808.44473243,0.00018,2]
[394022479,1763200232507,-287.32390379,0.00018,2]
[394022480,1763200232521,-420.1965292,0.00018,2]
[394022483,1763200238143,-20176.586808,0.00018,2]
[394022484,1763200238154,-516.371,0.00018,2]
[394022501,1763200240045,-22753.79831036,0.00018,2]
[394022502,1763200240104,-5795.45543174,0.00018,2]
[394022511,1763200246247,-701.58788103,0.00018,2]
[394022512,1763200246527,-423.26844788,0.00018,2]
[394022513,1763200246587,-6777.32418324,0.00018,2]
[394022515,1763200246646,-1856.3106274,0.00018,2]
[394022516,1763200246705,-15384.07972,0.00018,2]
[394022517,1763200246720,-1404.83700312,0.00018,2]
[394022520,1763200246824,-1154.92081612,0.00018,2]
[394022521,1763200246836,-637.30701203,0.00018,2]
[394022522,1763200246847,-1035.94218875,0.00018,2]
[394022523,1763200246859,-1014.09508778,0.00018,2]
[394032634,1763201432146,-1765.86379233,0.00016683,2]
[394032635,1763201432157,-393.49650817,0.00016683,2]
[394032636,1763201432167,-300.0,0.00016699,2]
[394032637,1763201432176,-1200.0,0.00016699,2]
[394032638,1763201432185,-300.0,0.00016699,2]
[394032639,1763201432194,-4074.66427512,0.000167,2]
[394032640,1763201432205,-543.69374769,0.000167,2]
[394032641,1763201432216,-520.1919484,0.000167,2]
[394032642,1763201432253,-2293.14302879,0.000167,2]
[394032643,1763201432262,-642.68119542,0.000167,2]
[394032644,1763201432273,-357.31880458,0.000167,2]
[394032645,1763201432282,-1706.8605469,0.000167,2]
[394032646,1763201432306,-261.91522188,0.000167,2]
[394032710,1763201440351,-938.69506257,0.000167,2]
[394032768,1763201733953,753.44,0.00013699,2]
[394032773,1763201910549,1061.0,0.000174,5]
[394032776,1763202067503,480.0,0.00022,30]
[394032778,1763202204277,166.66,0.00015546,2]
[394032779,1763202242620,-166.66,0.00015873,2]
[394032780,1763202242644,-166.66,0.000162,2]
[394032781,1763202242668,-159.35,0.00016296,2]
[394032782,1763202242693,-222.2113773,0.00016308,2]
[394032783,1763202242713,-200.0,0.00016357,2]
[394032784,1763202242734,-5885.1186227,0.0001643,2]
[394032792,1763202515727,31279.66978076,0.00015,3]
[394032806,1763202632317,-200.0,0.00015871,2]
[394032808,1763202632327,-195.0,0.00016128,2]
[394032810,1763202632338,-150.0,0.00016386,2]
[394032811,1763202632347,-195.0,0.00016407,2]
[394032812,1763202632356,-300.0,0.00016429,2]
[394032813,1763202632366,-300.0,0.00016429,2]
[394032814,1763202632375,-1200.0,0.00016429,2]
[394032815,1763202632384,-195.0,0.00016429,2]
[394032816,1763202632393,-2978.0138326,0.0001643,2]
[394032817,1763202632404,-2185.13732105,0.0001643,2]
[394032818,1763202632426,-4787.07022365,0.0001643,2]
[394032819,1763202632435,-500.0,0.00016438,2]
[394032820,1763202632444,-1000.0,0.00016514,2]
[394032821,1763202632453,-166.66,0.00016527,2]
[394032822,1763202632462,-162.07388,0.0001655,2]
[394032823,1763202632471,-3939.07481095,0.0001657,2]
[394032824,1763202632481,-178.37937402,0.00016573,2]
[394032825,1763202632490,-455.58377378,0.00016573,2]
[394032826,1763202632499,-162.30556826,0.00016573,2]
[394032827,1763202632508,-165.21284469,0.00016573,2]
[394032828,1763202632517,-486.81475157,0.00016599,2]
[394032829,1763202632526,-500.0,0.00016599,2]
[394032830,1763202632535,-7829.80212102,0.000166,2]
[394032898,1763202638521,-642.76071279,0.000166,2]
[394032899,1763202638532,-700.00000018,0.000166,2]
[394033108,1763202640582,-559.97185337,0.000166,2]
[394033109,1763202640595,-523.49738546,0.000166,2]
[394033110,1763202640637,-1439.535,0.000166,2]
[394033189,1763202966008,150.0,0.00015943,120]
[394033196,1763203129278,999.0,0.0001585,3]
[394033197,1763203234410,900.0,0.000168,6]
[394033198,1763203236514,1800.0,0.000169,6]
[394033215,1763203633951,800.0,0.000167,6]
[394033216,1763203636058,1600.0,0.000168,6]
[394033217,1763203638160,2400.0,0.000169,6]
[394033297,1763203732618,668.61,0.00015659,2]
[394033298,1763203758798,525.89,0.00015633,2]
[394033301,1763203831513,-500.0,0.00015771,2]
[394033302,1763203831522,-303.67,0.0001579,2]
[394033303,1763203831566,-81.26,0.0001579,2]
[394033304,1763203831575,-150.0,0.00015943,2]
[394033305,1763203831584,-439.87,0.00015946,2]
[394033306,1763203831594,-222.2113773,0.00016377,2]
[394033307,1763203831603,-352.67593307,0.00016399,2]
[394033308,1763203831624,-847.32406693,0.00016399,2]
[394033309,1763203831633,-300.0,0.00016399,2]
[394033310,1763203831643,-1200.0,0.00016399,2]
[394033311,1763203831652,-300.0,0.00016399,2]
[394033312,1763203831661,-300.0,0.00016399,2]
[394033313,1763203831671,-182.39450298,0.000164,2]
[394033314,1763203831680,-6640.85234746,0.000164,2]
[394033315,1763203831688,-162.53781062,0.000164,2]
[394033316,1763203831698,-3471.0898344,0.000164,2]
[394033317,1763203831707,-549.34,0.00016438,2]
[394033318,1763203831716,-506.60742957,0.00016473,2]
[394033319,1763203831724,-500.0,0.00016473,2]
[394033320,1763203831733,-615.21991021,0.00016473,2]
[394033321,1763203831743,-500.0,0.00016473,2]
[394033322,1763203831752,-500.0,0.00016473,2]
[394033323,1763203831760,-500.0,0.00016473,2]
[394033324,1763203831769,-500.0,0.00016473,2]
[394033325,1763203831778,-275.95708203,0.00016473,2]
[394033326,1763203831787,-500.0,0.00016473,2]
[394033327,1763203831796,-500.0,0.00016473,2]
[394033328,1763203831805,-500.0,0.00016473,2]
[394033329,1763203831817,-151.0,0.0001649,2]
[394033330,1763203831826,-151.0,0.0001649,2]
[394033332,1763203831836,-151.0,0.0001649,2]
[394033334,1763203831845,-151.0,0.0001649,2]
[394033336,1763203831854,-151.0,0.0001649,2]
[394033338,1763203831863,-151.0,0.0001649,2]
[394033340,1763203831872,-151.0,0.0001649,2]
[394033341,1763203831881,-151.0,0.0001649,2]
[394033342,1763203831890,-151.0,0.0001649,2]
[394033343,1763203831900,-151.0,0.0001649,2]
[394033344,1763203831909,-151.0,0.0001649,2]
[394033345,1763203831919,-151.0,0.0001649,2]
[394033346,1763203831928,-151.0,0.0001649,2]
[394033347,1763203831937,-151.0,0.0001649,2]
[394033348,1763203831946,-151.0,0.0001649,2]
[394033349,1763203831955,-151.0,0.0001649,2]
[394033350,1763203831964,-177.39540095,0.0001649,2]
[394033351,1763203831973,-267.26417072,0.00016499,2]
[394033352,1763203831983,-196.34756778,0.00016499,2]
[394033353,1763203831992,-500.0,0.00016499,2]
[394033354,1763203832002,-150.32382702,0.00016499,2]
[394033355,1763203832014,-500.0,0.00016499,2]
[394033356,1763203832023,-500.0,0.00016499,2]
[394033357,1763203832032,-500.0,0.00016499,2]
[394033358,1763203832041,-500.0,0.00016499,2]
[394033359,1763203832050,-500.0,0.00016499,2]
[394033360,1763203832060,-500.0,0.00016499,2]
[394033361,1763203832069,-500.0,0.00016499,2]
[394033362,1763203832078,-500.0,0.00016499,2]
[394033363,1763203832087,-500.0,0.00016499,2]
[394033364,1763203832096,-575.9971548,0.00016499,2]
[394033365,1763203832106,-1000.0,0.000165,2]
[394033366,1763203832115,-5473.3645,0.000165,2]
[394033367,1763203832124,-46399.00626558,0.000165,2]
[394033368,1763203832136,-15853.09983187,0.000165,2]
[394033369,1763203832147,-167088.43438534,0.000165,2]
[394033377,1763203837464,-943.11524412,0.000165,2]
[394033380,1763203837476,-529716.34427309,0.000165,2]
[394033381,1763203837486,-4077.4968,0.000165,2]
[394033382,1763203837495,-33182.0252,0.000165,2]
[394033383,1763203837505,-161.866969,0.000165,2]
[394033385,1763203837515,-151.0,0.000165,2]
[394033387,1763203837524,-151.0,0.000165,2]
[394033389,1763203837534,-164.271193,0.000165,2]
[394033391,1763203837543,-186.669968,0.000165,2]
[394033393,1763203837552,-186.669968,0.000165,2]
[394033395,1763203837562,-186.669968,0.000165,2]
[394033396,1763203837571,-186.669968,0.000165,2]
[394033397,1763203837581,-186.669968,0.000165,2]
[394033398,1763203837590,-186.669968,0.000165,2]
[394033399,1763203837599,-186.669968,0.000165,2]
[394033400,1763203837609,-186.669968,0.000165,2]
[394033401,1763203837618,-151.0,0.000165,2]
[394033402,1763203837627,-299.473993,0.000165,2]
[394033403,1763203837636,-649.70851277,0.00016573,2]
[394033404,1763203837646,-212.84,0.0001659,2]
[394033405,1763203837655,-818.867,0.0001659,2]
[394033406,1763203837665,-155.329,0.0001659,2]
[394033407,1763203837674,-225.55571202,0.00016596,2]
[394033408,1763203837684,-1000.0,0.00016599,2]
[394033409,1763203837693,-879.37,0.00016599,2]
[394033410,1763203837703,-500.0,0.00016599,2]
[394033411,1763203837712,-500.0,0.00016599,2]
[394033412,1763203837722,-772.9689,0.000166,2]
[394033413,1763203837731,-2000.0,0.000166,2]
[394033415,1763203837741,-2000.0,0.000166,2]
[394033417,1763203837751,-2000.0,0.000166,2]
[394033418,1763203837760,-2000.0,0.000166,2]
[394033419,1763203837769,-2000.0,0.000166,2]
[394033420,1763203837779,-2000.0,0.000166,2]
[394033421,1763203837789,-252.433,0.000166,2]
[394033422,1763203837797,-1000.0,0.000166,2]
[394033423,1763203837807,-1000.0,0.000166,2]
[394033424,1763203837816,-1000.0,0.000166,2]
[394033425,1763203837825,-1000.0,0.000166,2]
[394033426,1763203837834,-1000.0,0.000166,2]
[394033427,1763203837844,-1000.0,0.000166,2]
[394033428,1763203837855,-1000.0,0.000166,2]
[394033429,1763203837864,-718.334,0.000166,2]
[394033430,1763203837875,-44387.4768368,0.00016606,2]
[394033431,1763203837884,-40191.3413697,0.00016606,2]
[394033432,1763203837893,-23038.5829721,0.00016606,2]
[394033433,1763203837902,-651143.2390844,0.00016606,2]
[394033434,1763203837911,-1342.760713,0.00016606,2]
[394033435,1763203837921,-151.0,0.00016606,2]
[394033436,1763203837930,-185.817072,0.00016606,2]
[394033437,1763203837939,-186.669968,0.00016606,2]
[394033438,1763203837948,-186.669968,0.00016606,2]
[394033439,1763203837957,-186.669968,0.00016606,2]
[394033440,1763203837967,-186.669968,0.00016606,2]
[394033441,1763203837975,-186.669968,0.00016606,2]
[394033442,1763203837984,-186.669968,0.00016606,2]
[394033443,1763203837994,-186.669968,0.00016606,2]
[394033444,1763203838003,-186.669968,0.00016606,2]
[394033445,1763203838012,-186.669968,0.00016606,2]
[394033446,1763203838021,-186.669968,0.00016606,2]
[394033447,1763203838030,-186.669968,0.00016606,2]
[394033448,1763203838040,-186.669971,0.00016606,2]
[394033449,1763203838049,-151.0,0.00016651,2]
[394033450,1763203838058,-151.0,0.00016651,2]
[394033451,1763203838068,-151.0,0.00016651,2]
[394033452,1763203838077,-151.0,0.00016652,2]
[394033453,1763203838086,-151.0,0.00016652,2]
[394033454,1763203838095,-500.0,0.00016673,2]
[394033455,1763203838104,-500.0,0.00016673,2]
[394033456,1763203838113,-500.0,0.00016673,2]
[394033457,1763203838122,-500.0,0.00016673,2]
[394033458,1763203838132,-322.33010084,0.00016673,2]
[394033459,1763203838141,-501.79332168,0.00016673,2]
[394033460,1763203838152,-500.0,0.00016673,2]
[394033461,1763203838161,-171.63434338,0.00016673,2]
[394033462,1763203838170,-500.0,0.00016673,2]
[394033463,1763203838180,-500.0,0.00016673,2]
[394033464,1763203838189,-500.0,0.00016673,2]
[394033465,1763203838198,-462.19976098,0.00016673,2]
[394033466,1763203838208,-150.40745364,0.00016673,2]
[394033467,1763203838217,-501.10486904,0.00016673,2]
[394033468,1763203838227,-504.1689478,0.00016673,2]
[394033469,1763203838236,-501.78028737,0.00016673,2]
[394033470,1763203838245,-500.0,0.00016673,2]
[394033471,1763203838254,-500.0,0.00016673,2]
[394033472,1763203838264,-505.87866112,0.00016673,2]
[394033473,1763203838273,-500.0,0.00016673,2]
[394033474,1763203838282,-500.0,0.00016673,2]
[394033475,1763203838292,-501.74831754,0.00016673,2]
[394033476,1763203838301,-500.0,0.00016673,2]
[394033477,1763203838314,-489.8728337,0.00016673,2]
[394033478,1763203838322,-501.02242338,0.00016673,2]
[394033479,1763203838332,-500.0,0.00016673,2]
[394033480,1763203838341,-500.0,0.00016673,2]
[394033481,1763203838351,-500.0,0.00016673,2]
[394033482,1763203838360,-500.0,0.00016673,2]
[394033483,1763203838369,-500.0,0.00016673,2]
[394033484,1763203838379,-500.0,0.00016673,2]
[394033485,1763203838389,-204.18,0.00016703,2]
[394033486,1763203838399,-190.49,0.00016712,2]
[394033487,1763203838408,-3471.08983437,0.00016786,2]
[394033488,1763203838417,-6640.85234739,0.00016837,2]
[394033489,1763203838426,-166.66,0.00016855,2]
[394033490,1763203838436,-212.84,0.00016864,2]
[394033491,1763203838445,-500.58527725,0.00016973,2]
[394033492,1763203838455,-500.0,0.00016973,2]
[394033493,1763203838464,-500.0,0.00016973,2]
[394033494,1763203838474,-500.0,0.00016973,2]
[394033495,1763203838483,-500.0,0.00016973,2]
[394033496,1763203838492,-500.0,0.00016973,2]
[394033497,1763203838502,-506.30937773,0.00016973,2]
[394033498,1763203838511,-500.0,0.00016973,2]
[394033499,1763203838521,-501.0314421,0.00016973,2]
[394033500,1763203838530,-500.0,0.00016973,2]
[394033501,1763203838539,-879.37,0.00016999,2]
[394033502,1763203838548,-111209.77984068,0.00017,2]
[394033503,1763203838558,-2000.0,0.00017,2]
[394033504,1763203838568,-250.0,0.00017,2]
[394033505,1763203838577,-827.0,0.00017,2]
[394033506,1763203838587,-792.48055508,0.00017021,2]
[394033507,1763203838596,-500.0,0.00017021,2]
[394033508,1763203838606,-592.81498937,0.00017021,2]
[394033509,1763203838615,-566.6164929,0.00017021,2]
[394033510,1763203838625,-1000.0,0.00017021,2]
[394033511,1763203838635,-270.51067277,0.00017021,2]
[394033512,1763203838644,-500.63239737,0.00017073,2]
[394033513,1763203838654,-500.0,0.00017073,2]
[394033514,1763203838663,-227.72,0.00017074,2]
[394033515,1763203838673,-47560.17175769,0.00017086,2]
[394033516,1763203838682,-565.70789021,0.000171,2]
[394033517,1763203838691,-212.84,0.00017138,2]
[394033518,1763203838700,-3471.08983437,0.00017172,2]
[394033519,1763203838709,-166.66,0.00017182,2]
[394033520,1763203838718,-502.22144577,0.00017221,2]
[394033521,1763203838727,-803.68058232,0.00017221,2]
[394033522,1763203838736,-501.49845435,0.00017221,2]
[394033523,1763203838746,-504.00443964,0.00017221,2]
[394033524,1763203838755,-1000.0,0.00017221,2]
[394033525,1763203838765,-500.0,0.00017221,2]
[394033526,1763203838775,-500.0,0.00017221,2]
[394033527,1763203838784,-502.2697654,0.00017221,2]
[394033528,1763203838793,-501.09401092,0.00017221,2]
[394033529,1763203838802,-646.57973683,0.00017221,2]
[394033530,1763203838812,-1000.0,0.00017221,2]
[394033531,1763203838823,-1002.41579198,0.00017221,2]
[394033532,1763203838833,-1000.0,0.00017221,2]
[394033533,1763203838843,-501.90512962,0.00017221,2]
[394033534,1763203838852,-1000.0,0.00017221,2]
[394033535,1763203838861,-501.34785536,0.00017221,2]
[394033536,1763203838871,-1000.0,0.00017221,2]
[394033537,1763203838880,-1000.0,0.00017221,2]
[394033538,1763203838890,-6640.85234739,0.00017273,2]
[394033539,1763203838900,-170.0,0.00017314,2]
[394033540,1763203838910,-200.0,0.00017348,2]
[394033541,1763203838919,-200.0,0.00017348,2]
[394033542,1763203838929,-214.5846674,0.00017348,2]
[394033543,1763203838938,-300.0,0.00017348,2]
[394033544,1763203838948,-300.0,0.00017348,2]
[394033545,1763203838957,-300.0,0.00017348,2]
[394033546,1763203838967,-300.0,0.00017348,2]
[394033547,1763203838977,-300.0,0.00017348,2]
[394033548,1763203838987,-300.0,0.00017348,2]
[394033549,1763203838996,-250.0,0.00017348,2]
[394033550,1763203839006,-195.0,0.00017348,2]
[394033551,1763203839015,-250.0,0.00017348,2]
[394033552,1763203839025,-200.0,0.00017348,2]
[394033553,1763203839034,-200.0,0.00017348,2]
[394033554,1763203839043,-195.0,0.00017348,2]
[394033555,1763203839053,-250.0,0.00017348,2]
[394033556,1763203839063,-175.37172571,0.00017348,2]
[394033557,1763203839073,-170.0,0.00017391,2]
[394033558,1763203839082,-212.84,0.00017412,2]
[394033559,1763203839092,-250.0,0.00017428,2]
[394033560,1763203839101,-1000.0,0.00017521,2]
[394033561,1763203839111,-1000.0,0.00017521,2]
[394033562,1763203839121,-501.83907426,0.00017521,2]
[394033563,1763203839130,-1000.0,0.00017521,2]
[394033564,1763203839140,-170.0,0.00017532,2]
[394033565,1763203839149,-3235.01920209,0.00017558,2]
[394033566,1763203839158,-170.0,0.00017558,2]
[394033567,1763203839168,-1500.0,0.00017568,2]
[394033568,1763203839178,-170.0,0.00017588,2]
[394033569,1763203839187,-170.0,0.00017593,2]
[394033570,1763203839197,-170.0,0.00017613,2]
[394033571,1763203839206,-501.78304251,0.00017621,2]
[394033572,1763203839215,-170.0,0.00017628,2]
[394033573,1763203839224,-170.0,0.00017662,2]
[394033574,1763203839234,-212.87,0.00017686,2]
[394033575,1763203839244,-602.23993417,0.00017697,2]
[394033576,1763203839254,-6640.85234739,0.0001771,2]
[394033577,1763203839264,-170.0,0.00017739,2]
[394033578,1763203839274,-384.93,0.00017764,2]
[394033579,1763203839284,-1500.0,0.00017768,2]
[394033580,1763203839294,-500.0,0.00017768,2]
[394033581,1763203839304,-1236.73335801,0.00017768,2]
[394033582,1763203839318,-1500.0,0.00017768,2]
[394033583,1763203839328,-500.0,0.00017768,2]
[394033584,1763203839338,-305.9221961,0.00017768,2]
[394033585,1763203839348,-496.00115663,0.00017785,2]
[394033586,1763203839359,-3200.0,0.000178,6]
[394033587,1763203839369,-500.0,0.00017808,2]
[394033588,1763203839379,-312.38805,0.00017849,2]
[394033589,1763203839391,-4000.0,0.000179,6]
[394033590,1763203839400,-170.0,0.00017906,2]
[394033591,1763203839411,-180.3056003,0.00017912,3]
[394033592,1763203839421,-1680.0,0.00017922,2]
[394033593,1763203839430,-420.0,0.00017922,2]
[394033595,1763203839440,-400.0,0.00017922,2]
[394033596,1763203839449,-170.0,0.00017922,2]
[394033597,1763203839459,-501.38726067,0.00017973,2]
[394033598,1763203839469,-500.0,0.00017973,2]
[394033599,1763203839479,-500.0,0.00017973,2]
[394033600,1763203839488,-879.37,0.00017999,2]
[394033601,1763203839498,-879.37,0.00017999,2]
[394033602,1763203839507,-879.37,0.00017999,2]
[394033603,1763203839516,-879.37,0.00017999,2]
[394033604,1763203839525,-879.37,0.00017999,2]
[394033605,1763203839536,-879.37,0.00017999,2]
[394033606,1763203839545,-879.37,0.00017999,2]
[394033607,1763203839554,-879.37,0.00017999,2]
[394033608,1763203839564,-879.37,0.00017999,2]
[394033609,1763203839573,-879.37,0.00017999,2]
[394033610,1763203839582,-879.37,0.00017999,2]
[394033611,1763203839592,-879.37,0.00017999,2]
[394033612,1763203839601,-735947.36603047,0.00018,2]
[394033613,1763203839615,-10462.68600586,0.00018,2]
[394033614,1763203839630,-151.0,0.000165,2]
[394033615,1763203839639,-584.85953622,0.00018,2]
[394033616,1763203839650,-783.82656448,0.00018,2]